[Event "Titled Tuesday Blitz November 01 Late 2022"]
[White "Mendez Fortes, Eduardo Jesus"]
[Black "Sargsyan, Anna M."]
[WhiteFideId "3502376"]
[BlackFideId "13308130"]
[WhiteElo "2307"]
[BlackElo "2284"]
[Result "1-0"]
[Round "10"]
[TimeControl "180+1"]
[Date "2022.11.02"]
[WhiteClock "0:01:39"]
[BlackClock "0:00:03"]

1. e4 {[%clk 0:03:00]}  c6 {[%clk 0:02:59]} 2. d4 {[%clk 0:03:00]}  d5 {[%clk 0:02:59]} 3. Nc3 {[%clk 0:03:00]}  dxe4 {[%clk 0:02:55]} 4. Nxe4 {[%clk 0:03:01]}  Nd7 {[%clk 0:02:55]} 5. Nf3 {[%clk 0:03:01]}  Ngf6 {[%clk 0:02:55]} 6. Nxf6+ {[%clk 0:03:01]}  Nxf6 {[%clk 0:02:56]} 7. Ne5 {[%clk 0:03:01]}  Bf5 {[%clk 0:02:50]} 8. c3 {[%clk 0:03:01]}  e6 {[%clk 0:02:50]} 9. g4 {[%clk 0:03:00]}  Bg6 {[%clk 0:02:35]} 10. h4 {[%clk 0:02:59]}  Nd7 {[%clk 0:02:35]} 11. h5 {[%clk 0:02:56]}  Nxe5 {[%clk 0:02:34]} 12. dxe5 {[%clk 0:02:52]}  Qxd1+ {[%clk 0:02:34]} 13. Kxd1 {[%clk 0:02:49]}  Be4 {[%clk 0:02:28]} 14. Rh3 {[%clk 0:02:48]}  h6 {[%clk 0:02:17]} 15. Be3 {[%clk 0:02:38]}  O-O-O+ {[%clk 0:02:12]} 16. Ke1 {[%clk 0:02:37]}  b6 {[%clk 0:02:03]} 17. Bc4 {[%clk 0:02:24]}  Be7 {[%clk 0:01:59]} 18. a4 {[%clk 0:02:23]}  Kb7 {[%clk 0:01:41]} 19. f3 {[%clk 0:02:21]}  Bd5 {[%clk 0:01:36]} 20. Be2 {[%clk 0:02:21]}  c5 {[%clk 0:01:32]} 21. a5 {[%clk 0:02:20]}  Bc6 {[%clk 0:01:26]} 22. Kf2 {[%clk 0:02:12]}  Rd5 {[%clk 0:01:16]} 23. f4 {[%clk 0:02:09]}  Rhd8 {[%clk 0:01:13]} 24. Rhh1 {[%clk 0:02:06]}  R5d7 {[%clk 0:00:55]} 25. axb6 {[%clk 0:02:05]}  axb6 {[%clk 0:00:55]} 26. Rhd1 {[%clk 0:01:56]}  Be4 {[%clk 0:00:32]} 27. Rxd7+ {[%clk 0:01:52]}  Rxd7 {[%clk 0:00:31]} 28. Bf3 {[%clk 0:01:52]}  Bxf3 {[%clk 0:00:19]} 29. Kxf3 {[%clk 0:01:53]}  Kc6 {[%clk 0:00:19]} 30. Ke4 {[%clk 0:01:52]}  Kb7 {[%clk 0:00:16]} 31. f5 {[%clk 0:01:52]}  Bd8 {[%clk 0:00:08]} 32. f6 {[%clk 0:01:51]}  gxf6 {[%clk 0:00:08]} 33. exf6 {[%clk 0:01:50]}  Bxf6 {[%clk 0:00:09]} 34. Bxh6 {[%clk 0:01:49]}  Rd8 {[%clk 0:00:07]} 35. Bf4 {[%clk 0:01:48]}  Rg8 {[%clk 0:00:08]} 36. Rg1 {[%clk 0:01:47]}  Be7 {[%clk 0:00:07]} 37. g5 {[%clk 0:01:46]}  Kc6 {[%clk 0:00:07]} 38. h6 {[%clk 0:01:45]}  Bd6 {[%clk 0:00:04]} 39. Rd1 {[%clk 0:01:42]}  Bxf4 {[%clk 0:00:03]} 40. Kxf4 {[%clk 0:01:43]}  Rh8 {[%clk 0:00:04]} 41. Ke5 {[%clk 0:01:42]}  Rg8 {[%clk 0:00:03]} 42. Rg1 {[%clk 0:01:42]}  Rg6 {[%clk 0:00:03]} 43. h7 {[%clk 0:01:41]}  f6+ {[%clk 0:00:04]} 44. Ke4 {[%clk 0:01:39]}  f5+ {[%clk 0:00:03]} 45. Ke5 {[%clk 0:01:39]} 1-0


[Site "https://www.chess.com"]

[Event "Titled Tuesday Blitz November 01 Late 2022"]
[White "Mickiewicz, Piotr"]
[Black "Martinez Molina, Carlos Alberto"]
[WhiteFideId "1114891"]
[BlackFideId "5122708"]
[WhiteElo "2246"]
[BlackElo "2212"]
[Result "1-0"]
[Round "10"]
[TimeControl "180+1"]
[Date "2022.11.02"]
[WhiteClock "0:00:19"]
[BlackClock "0:00:09"]

1. e4 {[%clk 0:03:00]}  c5 {[%clk 0:02:59]} 2. Nf3 {[%clk 0:03:00]}  e6 {[%clk 0:02:59]} 3. c3 {[%clk 0:02:54]}  Nf6 {[%clk 0:02:59]} 4. d3 {[%clk 0:02:52]}  d5 {[%clk 0:02:57]} 5. Nbd2 {[%clk 0:02:52]}  Nc6 {[%clk 0:02:57]} 6. Be2 {[%clk 0:02:50]}  Be7 {[%clk 0:02:57]} 7. O-O {[%clk 0:02:49]}  O-O {[%clk 0:02:58]} 8. a3 {[%clk 0:02:48]}  b5 {[%clk 0:02:57]} 9. Re1 {[%clk 0:02:24]}  a5 {[%clk 0:02:26]} 10. a4 {[%clk 0:02:22]}  b4 {[%clk 0:02:25]} 11. Qc2 {[%clk 0:02:21]}  Ba6 {[%clk 0:02:17]} 12. Bf1 {[%clk 0:02:16]}  Rc8 {[%clk 0:02:10]} 13. g3 {[%clk 0:02:06]}  Qd7 {[%clk 0:01:49]} 14. exd5 {[%clk 0:02:05]}  Qxd5 {[%clk 0:01:43]} 15. Ne4 {[%clk 0:01:31]}  Rfd8 {[%clk 0:01:27]} 16. c4 {[%clk 0:00:41]}  Qd7 {[%clk 0:01:07]} 17. Be3 {[%clk 0:00:39]}  Nxe4 {[%clk 0:00:55]} 18. dxe4 {[%clk 0:00:40]}  Nd4 {[%clk 0:00:56]} 19. Bxd4 {[%clk 0:00:38]}  cxd4 {[%clk 0:00:57]} 20. b3 {[%clk 0:00:38]}  d3 {[%clk 0:00:31]} 21. Qd2 {[%clk 0:00:37]}  Bc5 {[%clk 0:00:30]} 22. Rad1 {[%clk 0:00:32]}  Qa7 {[%clk 0:00:25]} 23. Ne5 {[%clk 0:00:30]}  Bb7 {[%clk 0:00:21]} 24. Nxd3 {[%clk 0:00:29]}  Rxd3 {[%clk 0:00:19]} 25. Bxd3 {[%clk 0:00:27]}  Rd8 {[%clk 0:00:17]} 26. Qe2 {[%clk 0:00:27]}  Bd4 {[%clk 0:00:16]} 27. Rf1 {[%clk 0:00:27]}  e5 {[%clk 0:00:17]} 28. Kg2 {[%clk 0:00:26]}  f5 {[%clk 0:00:17]} 29. f3 {[%clk 0:00:24]}  f4 {[%clk 0:00:16]} 30. gxf4 {[%clk 0:00:22]}  exf4 {[%clk 0:00:17]} 31. Kh1 {[%clk 0:00:21]}  Qc5 {[%clk 0:00:16]} 32. e5 {[%clk 0:00:21]}  Re8 {[%clk 0:00:12]} 33. Be4 {[%clk 0:00:21]}  Bxe4 {[%clk 0:00:08]} 34. Qxe4 {[%clk 0:00:19]}  Rxe5 {[%clk 0:00:09]} 35. Qxd4 {[%clk 0:00:19]} 1-0


[Site "https://www.chess.com"]

[Event "Titled Tuesday Blitz November 01 Late 2022"]
[White "Moreno Perez, Tobias Sebastian"]
[Black "Freile Martin, Javier"]
[WhiteFideId "186716"]
[BlackFideId "3600165"]
[WhiteElo "2521"]
[BlackElo "2401"]
[Result "0-1"]
[Round "10"]
[TimeControl "180+1"]
[Date "2022.11.02"]
[WhiteClock "0:01:05"]
[BlackClock "0:00:16"]

1. Nf3 {[%clk 0:03:00]}  Nf6 {[%clk 0:02:17]} 2. b3 {[%clk 0:03:01]}  d6 {[%clk 0:02:15]} 3. d4 {[%clk 0:02:59]}  Nbd7 {[%clk 0:02:15]} 4. Bb2 {[%clk 0:02:58]}  g6 {[%clk 0:02:15]} 5. e3 {[%clk 0:02:59]}  Bg7 {[%clk 0:02:15]} 6. Be2 {[%clk 0:02:59]}  a5 {[%clk 0:02:13]} 7. a4 {[%clk 0:02:55]}  O-O {[%clk 0:02:11]} 8. O-O {[%clk 0:02:55]}  b6 {[%clk 0:02:11]} 9. c4 {[%clk 0:02:55]}  Bb7 {[%clk 0:02:10]} 10. Nc3 {[%clk 0:02:55]}  e6 {[%clk 0:02:09]} 11. Rc1 {[%clk 0:02:53]}  Re8 {[%clk 0:02:08]} 12. Bd3 {[%clk 0:02:52]}  c6 {[%clk 0:02:07]} 13. e4 {[%clk 0:02:51]}  e5 {[%clk 0:02:07]} 14. d5 {[%clk 0:02:51]}  cxd5 {[%clk 0:02:05]} 15. cxd5 {[%clk 0:02:50]}  Nc5 {[%clk 0:02:05]} 16. Bb5 {[%clk 0:02:50]}  Rf8 {[%clk 0:02:04]} 17. Nd2 {[%clk 0:02:47]}  Bh6 {[%clk 0:02:02]} 18. Re1 {[%clk 0:02:40]}  Bxd2 {[%clk 0:01:51]} 19. Qxd2 {[%clk 0:02:40]}  Nxb3 {[%clk 0:01:51]} 20. Qh6 {[%clk 0:02:37]}  Nxc1 {[%clk 0:01:44]} 21. Bxc1 {[%clk 0:02:38]}  Ng4 {[%clk 0:01:43]} 22. Qh3 {[%clk 0:02:36]}  Bc8 {[%clk 0:01:40]} 23. Qg3 {[%clk 0:02:31]}  f5 {[%clk 0:01:31]} 24. h3 {[%clk 0:02:26]}  f4 {[%clk 0:01:29]} 25. Qd3 {[%clk 0:02:26]}  Nf6 {[%clk 0:01:26]} 26. Bc6 {[%clk 0:02:26]}  Ra7 {[%clk 0:01:24]} 27. Ba3 {[%clk 0:02:26]}  Ba6 {[%clk 0:01:20]} 28. Qb1 {[%clk 0:02:25]}  g5 {[%clk 0:01:16]} 29. f3 {[%clk 0:02:25]}  h5 {[%clk 0:01:15]} 30. Bb5 {[%clk 0:02:25]}  Bc8 {[%clk 0:01:12]} 31. Be2 {[%clk 0:02:22]}  Rg7 {[%clk 0:01:02]} 32. Nb5 {[%clk 0:02:21]}  Ne8 {[%clk 0:01:00]} 33. Rc1 {[%clk 0:01:57]}  g4 {[%clk 0:00:57]} 34. hxg4 {[%clk 0:01:56]}  hxg4 {[%clk 0:00:56]} 35. Rc6 {[%clk 0:01:50]}  Ba6 {[%clk 0:00:32]} 36. fxg4 {[%clk 0:01:30]}  f3 {[%clk 0:00:30]} 37. Bxf3 {[%clk 0:01:28]}  Qh4 {[%clk 0:00:28]} 38. Rxb6 {[%clk 0:01:20]}  Rxf3 {[%clk 0:00:19]} 39. Rxa6 {[%clk 0:01:05]}  Qf2+ {[%clk 0:00:16]} 0-1


[Site "https://www.chess.com"]

[Event "Titled Tuesday Blitz November 01 Late 2022"]
[White "Pace, Christopher"]
[Black "Petrovic, Aleksa"]
[WhiteFideId "2610167"]
[BlackFideId "967629"]
[WhiteElo "2307"]
[BlackElo "2242"]
[Result "1-0"]
[Round "10"]
[TimeControl "180+1"]
[Date "2022.11.02"]
[WhiteClock "0:01:54"]
[BlackClock "0:01:25"]

1. b3 {[%clk 0:03:00]}  e5 {[%clk 0:02:59]} 2. Bb2 {[%clk 0:02:58]}  Nc6 {[%clk 0:02:59]} 3. e3 {[%clk 0:02:58]}  Nh6 {[%clk 0:03:00]} 4. Nf3 {[%clk 0:02:55]}  d6 {[%clk 0:02:59]} 5. d4 {[%clk 0:02:52]}  e4 {[%clk 0:02:59]} 6. d5 {[%clk 0:02:49]}  Ne7 {[%clk 0:02:59]} 7. Ng5 {[%clk 0:02:33]}  f5 {[%clk 0:02:54]} 8. Qh5+ {[%clk 0:02:04]}  Ng6 {[%clk 0:02:37]} 9. Bb5+ {[%clk 0:01:57]}  Ke7 {[%clk 0:02:15]} 10. Nxh7 {[%clk 0:01:56]}  Rxh7 {[%clk 0:01:26]} 11. Qxg6 {[%clk 0:01:56]}  Rh8 {[%clk 0:01:25]} 12. Qg5+ {[%clk 0:01:54]} 1-0


[Site "https://www.chess.com"]

[Event "Titled Tuesday Blitz November 01 Late 2022"]
[White "Paravyan, David"]
[Black "Vusatiuk, Vladimir"]
[WhiteFideId "4194985"]
[BlackFideId "14118610"]
[WhiteElo "2555"]
[BlackElo "2208"]
[Result "0-1"]
[Round "10"]
[TimeControl "180+1"]
[Date "2022.11.01"]
[WhiteClock "0:00:01"]
[BlackClock "0:01:19"]

1. e4 {[%clk 0:03:00]}  c5 {[%clk 0:02:59]} 2. Nf3 {[%clk 0:03:01]}  d6 {[%clk 0:02:58]} 3. d4 {[%clk 0:03:01]}  cxd4 {[%clk 0:02:58]} 4. Nxd4 {[%clk 0:03:02]}  Nf6 {[%clk 0:02:58]} 5. Nc3 {[%clk 0:03:02]}  a6 {[%clk 0:02:57]} 6. Bg5 {[%clk 0:03:03]}  e6 {[%clk 0:02:56]} 7. f4 {[%clk 0:03:03]}  Qb6 {[%clk 0:02:54]} 8. Qd2 {[%clk 0:03:03]}  Qxb2 {[%clk 0:02:53]} 9. Rb1 {[%clk 0:03:03]}  Qa3 {[%clk 0:02:53]} 10. f5 {[%clk 0:03:04]}  Nc6 {[%clk 0:02:50]} 11. fxe6 {[%clk 0:03:04]}  Bxe6 {[%clk 0:02:47]} 12. Rxb7 {[%clk 0:03:04]}  Nxd4 {[%clk 0:02:43]} 13. Qxd4 {[%clk 0:03:05]}  Be7 {[%clk 0:02:44]} 14. Bc4 {[%clk 0:03:03]}  Rc8 {[%clk 0:02:40]} 15. Nd5 {[%clk 0:02:50]}  Bxd5 {[%clk 0:02:39]} 16. Bxd5 {[%clk 0:02:46]}  Nxd5 {[%clk 0:02:36]} 17. Qxd5 {[%clk 0:02:45]}  Qc3+ {[%clk 0:02:33]} 18. Ke2 {[%clk 0:02:25]}  Qxc2+ {[%clk 0:02:32]} 19. Bd2 {[%clk 0:02:25]}  Rc5 {[%clk 0:02:30]} 20. Rc1 {[%clk 0:02:21]}  Qxc1 {[%clk 0:02:30]} 21. Bxc1 {[%clk 0:02:21]}  Rxd5 {[%clk 0:02:30]} 22. exd5 {[%clk 0:02:22]}  h5 {[%clk 0:02:30]} 23. g3 {[%clk 0:02:23]}  h4 {[%clk 0:02:26]} 24. g4 {[%clk 0:02:23]}  f5 {[%clk 0:02:17]} 25. g5 {[%clk 0:01:58]}  Rh5 {[%clk 0:02:15]} 26. g6 {[%clk 0:01:30]}  f4 {[%clk 0:02:14]} 27. Rb8+ {[%clk 0:01:10]}  Kd7 {[%clk 0:02:10]} 28. Rb7+ {[%clk 0:01:10]}  Ke8 {[%clk 0:02:10]} 29. Ra7 {[%clk 0:00:53]}  Rxd5 {[%clk 0:02:08]} 30. Rxa6 {[%clk 0:00:53]}  Rg5 {[%clk 0:02:06]} 31. Bxf4 {[%clk 0:00:50]}  Rxg6 {[%clk 0:02:05]} 32. Kf3 {[%clk 0:00:47]}  Kd7 {[%clk 0:02:03]} 33. a4 {[%clk 0:00:43]}  Rg1 {[%clk 0:02:01]} 34. Be3 {[%clk 0:00:41]}  Ra1 {[%clk 0:02:00]} 35. Bd4 {[%clk 0:00:37]}  Ra3+ {[%clk 0:01:53]} 36. Kg4 {[%clk 0:00:37]}  g5 {[%clk 0:01:52]} 37. Kf5 {[%clk 0:00:35]}  Rf3+ {[%clk 0:01:48]} 38. Ke4 {[%clk 0:00:34]}  g4 {[%clk 0:01:45]} 39. Kd5 {[%clk 0:00:27]}  Rf5+ {[%clk 0:01:42]} 40. Ke4 {[%clk 0:00:28]}  Ke6 {[%clk 0:01:42]} 41. Ra8 {[%clk 0:00:26]}  Rf3 {[%clk 0:01:41]} 42. Bb6 {[%clk 0:00:09]}  d5+ {[%clk 0:01:38]} 43. Kd4 {[%clk 0:00:10]}  g3 {[%clk 0:01:37]} 44. hxg3 {[%clk 0:00:11]}  h3 {[%clk 0:01:34]} 45. Ra6 {[%clk 0:00:01]}  Bf6+ {[%clk 0:01:25]} 46. Kc5 {[%clk 0:00:02]}  h2 {[%clk 0:01:25]} 47. Bd8+ {[%clk 0:00:02]}  Kf7 {[%clk 0:01:23]} 48. Ra7+ {[%clk 0:00:02]}  Kg6 {[%clk 0:01:22]} 49. Bxf6 {[%clk 0:00:01]}  Rxf6 {[%clk 0:01:19]} 0-1


[Site "https://www.chess.com"]

[Event "Titled Tuesday Blitz November 01 Late 2022"]
[White "Perez Cruz, Adianet"]
[Black "Curtis, John"]
[WhiteFideId "3510115"]
[BlackFideId "3200256"]
[WhiteElo "2146"]
[BlackElo "2203"]
[Result "0-1"]
[Round "10"]
[TimeControl "180+1"]
[Date "2022.11.02"]
[WhiteClock "0:00:35"]
[BlackClock "0:00:41"]

1. d4 {[%clk 0:03:00]}  Nf6 {[%clk 0:02:59]} 2. Bg5 {[%clk 0:02:59]}  e6 {[%clk 0:02:58]} 3. e4 {[%clk 0:02:58]}  d5 {[%clk 0:02:58]} 4. e5 {[%clk 0:02:58]}  h6 {[%clk 0:02:58]} 5. Bxf6 {[%clk 0:02:57]}  gxf6 {[%clk 0:02:59]} 6. f4 {[%clk 0:02:55]}  c5 {[%clk 0:02:58]} 7. c3 {[%clk 0:02:54]}  Bd7 {[%clk 0:02:56]} 8. Bd3 {[%clk 0:02:53]}  Qb6 {[%clk 0:02:47]} 9. Qb3 {[%clk 0:02:51]}  c4 {[%clk 0:02:41]} 10. Qxb6 {[%clk 0:02:49]}  axb6 {[%clk 0:02:42]} 11. Bc2 {[%clk 0:02:50]}  f5 {[%clk 0:02:38]} 12. Nd2 {[%clk 0:02:49]}  b5 {[%clk 0:02:39]} 13. a3 {[%clk 0:02:43]}  b4 {[%clk 0:02:38]} 14. cxb4 {[%clk 0:02:43]}  Bxb4 {[%clk 0:02:37]} 15. Kd1 {[%clk 0:02:43]}  c3 {[%clk 0:02:35]} 16. Nb1 {[%clk 0:02:24]}  cxb2 {[%clk 0:02:26]} 17. Ra2 {[%clk 0:02:25]}  Nc6 {[%clk 0:02:07]} 18. Ne2 {[%clk 0:02:24]}  Ra7 {[%clk 0:01:54]} 19. Rxb2 {[%clk 0:02:23]}  Bxa3 {[%clk 0:01:49]} 20. Nxa3 {[%clk 0:02:24]}  Rxa3 {[%clk 0:01:48]} 21. Rxb7 {[%clk 0:02:25]}  Ra1+ {[%clk 0:01:33]} 22. Bb1 {[%clk 0:02:07]}  Ra4 {[%clk 0:01:31]} 23. Kd2 {[%clk 0:01:59]}  Ke7 {[%clk 0:01:25]} 24. Bc2 {[%clk 0:01:38]}  Ra2 {[%clk 0:01:20]} 25. Rhb1 {[%clk 0:01:35]}  Rg8 {[%clk 0:01:12]} 26. g3 {[%clk 0:01:34]}  Rga8 {[%clk 0:01:08]} 27. Kd1 {[%clk 0:01:33]}  Ra1 {[%clk 0:01:04]} 28. Kd2 {[%clk 0:01:18]}  Rxb1 {[%clk 0:01:04]} 29. Bxb1 {[%clk 0:01:19]}  Na5 {[%clk 0:01:03]} 30. Rc7 {[%clk 0:01:10]}  Nc4+ {[%clk 0:01:01]} 31. Kc1 {[%clk 0:01:04]}  Kd8 {[%clk 0:01:00]} 32. Rc5 {[%clk 0:00:57]}  Ba4 {[%clk 0:01:00]} 33. Nc3 {[%clk 0:00:56]}  h5 {[%clk 0:00:56]} 34. Bd3 {[%clk 0:00:49]}  Ne3 {[%clk 0:00:55]} 35. Bb5 {[%clk 0:00:35]}  Bxb5 {[%clk 0:00:53]} 36. Nxb5 {[%clk 0:00:36]}  Ra2 {[%clk 0:00:51]} 37. Nd6 {[%clk 0:00:36]}  Rxh2 {[%clk 0:00:48]} 38. Rc8+ {[%clk 0:00:37]}  Kd7 {[%clk 0:00:48]} 39. Rf8 {[%clk 0:00:36]}  Nc2 {[%clk 0:00:46]} 40. Rxf7+ {[%clk 0:00:36]}  Kc6 {[%clk 0:00:46]} 41. Rf6 {[%clk 0:00:36]}  Nxd4 {[%clk 0:00:46]} 42. Rh6 {[%clk 0:00:36]}  Kc5 {[%clk 0:00:45]} 43. Nf7 {[%clk 0:00:35]}  Kc4 {[%clk 0:00:44]} 44. Ng5 {[%clk 0:00:34]}  Kc3 {[%clk 0:00:43]} 45. Kb1 {[%clk 0:00:35]}  Nb3 {[%clk 0:00:41]} 0-1


[Site "https://www.chess.com"]

[Event "Titled Tuesday Blitz November 01 Late 2022"]
[White "Poliakova, Varvara"]
[Black "Tanenbaum, Zachary"]
[WhiteFideId "13518313"]
[BlackFideId "2060850"]
[WhiteElo "1938"]
[BlackElo "2175"]
[Result "0-1"]
[Round "10"]
[TimeControl "180+1"]
[Date "2022.11.02"]
[WhiteClock "0:00:01"]
[BlackClock "0:00:10"]

1. f4 {[%clk 0:02:57]}  d5 {[%clk 0:03:00]} 2. Nf3 {[%clk 0:02:57]}  Nf6 {[%clk 0:03:00]} 3. g3 {[%clk 0:02:56]}  c5 {[%clk 0:03:01]} 4. Bg2 {[%clk 0:02:55]}  Nc6 {[%clk 0:03:02]} 5. O-O {[%clk 0:02:53]}  Bf5 {[%clk 0:03:02]} 6. d3 {[%clk 0:02:49]}  e6 {[%clk 0:03:00]} 7. Nc3 {[%clk 0:02:46]}  d4 {[%clk 0:03:00]} 8. e4 {[%clk 0:02:43]}  dxe3 {[%clk 0:02:50]} 9. Bxe3 {[%clk 0:02:42]}  Ng4 {[%clk 0:02:21]} 10. Bd2 {[%clk 0:02:39]}  c4 {[%clk 0:02:16]} 11. h3 {[%clk 0:02:36]}  Bc5+ {[%clk 0:02:15]} 12. Kh1 {[%clk 0:02:33]}  Nf2+ {[%clk 0:02:15]} 13. Rxf2 {[%clk 0:02:33]}  Bxf2 {[%clk 0:02:16]} 14. g4 {[%clk 0:02:32]}  Bg6 {[%clk 0:02:14]} 15. f5 {[%clk 0:02:29]}  exf5 {[%clk 0:02:12]} 16. gxf5 {[%clk 0:02:30]}  cxd3 {[%clk 0:02:04]} 17. fxg6 {[%clk 0:02:26]}  hxg6 {[%clk 0:02:03]} 18. cxd3 {[%clk 0:02:24]}  Qxd3 {[%clk 0:02:01]} 19. Qe2+ {[%clk 0:02:14]}  Qxe2 {[%clk 0:02:00]} 20. Nxe2 {[%clk 0:02:15]}  O-O-O {[%clk 0:01:46]} 21. Bc3 {[%clk 0:01:59]}  Rhe8 {[%clk 0:01:41]} 22. Bf1 {[%clk 0:01:56]}  f6 {[%clk 0:01:29]} 23. Kg2 {[%clk 0:01:54]}  Bb6 {[%clk 0:01:28]} 24. Nf4 {[%clk 0:01:51]}  g5 {[%clk 0:01:26]} 25. Nh5 {[%clk 0:01:50]}  Re7 {[%clk 0:01:18]} 26. Re1 {[%clk 0:01:42]}  Rxe1 {[%clk 0:01:17]} 27. Nxe1 {[%clk 0:01:43]}  Ba5 {[%clk 0:01:13]} 28. Bxa5 {[%clk 0:01:41]}  Nxa5 {[%clk 0:01:14]} 29. Nxg7 {[%clk 0:01:39]}  Rd2+ {[%clk 0:01:14]} 30. Kg3 {[%clk 0:01:37]}  Rxb2 {[%clk 0:01:13]} 31. Nh5 {[%clk 0:01:37]}  f5 {[%clk 0:01:10]} 32. Bd3 {[%clk 0:01:36]}  f4+ {[%clk 0:01:07]} 33. Kg4 {[%clk 0:01:36]}  Rxa2 {[%clk 0:00:58]} 34. Nf3 {[%clk 0:01:36]}  Rg2+ {[%clk 0:00:56]} 35. Kf5 {[%clk 0:01:35]}  Nc6 {[%clk 0:00:37]} 36. Nxg5 {[%clk 0:01:32]}  Ne7+ {[%clk 0:00:34]} 37. Kf6 {[%clk 0:01:29]}  Nd5+ {[%clk 0:00:33]} 38. Kg6 {[%clk 0:01:28]}  f3 {[%clk 0:00:31]} 39. Be4 {[%clk 0:01:27]}  Ne7+ {[%clk 0:00:23]} 40. Kf6 {[%clk 0:01:25]}  Ng8+ {[%clk 0:00:21]} 41. Kf5 {[%clk 0:01:20]}  Ne7+ {[%clk 0:00:18]} 42. Kf4 {[%clk 0:01:16]}  a5 {[%clk 0:00:16]} 43. Nxf3 {[%clk 0:01:14]}  a4 {[%clk 0:00:15]} 44. Nd4 {[%clk 0:01:14]}  Rh2 {[%clk 0:00:13]} 45. Nb5 {[%clk 0:01:06]}  Rxh3 {[%clk 0:00:11]} 46. Bf3 {[%clk 0:01:05]}  Kb8 {[%clk 0:00:10]} 47. Nf6 {[%clk 0:01:04]}  Ng6+ {[%clk 0:00:09]} 48. Kg4 {[%clk 0:01:03]}  Rh2 {[%clk 0:00:09]} 49. Nd7+ {[%clk 0:01:00]}  Kc8 {[%clk 0:00:08]} 50. Nb6+ {[%clk 0:00:59]}  Kd8 {[%clk 0:00:08]} 51. Nxa4 {[%clk 0:00:53]}  Ne5+ {[%clk 0:00:08]} 52. Kg3 {[%clk 0:00:53]}  Nxf3 {[%clk 0:00:08]} 53. Kxf3 {[%clk 0:00:52]}  Rh5 {[%clk 0:00:08]} 54. Nd4 {[%clk 0:00:45]}  Rg5 {[%clk 0:00:08]} 55. Ne6+ {[%clk 0:00:44]}  Kd7 {[%clk 0:00:08]} 56. Nxg5 {[%clk 0:00:44]}  Kc6 {[%clk 0:00:08]} 57. Ke4 {[%clk 0:00:42]}  Kb5 {[%clk 0:00:09]} 58. Nc3+ {[%clk 0:00:40]}  Kc4 {[%clk 0:00:09]} 59. Nd1 {[%clk 0:00:38]}  b5 {[%clk 0:00:10]} 60. Nf3 {[%clk 0:00:37]}  Kb3 {[%clk 0:00:08]} 61. Ne1 {[%clk 0:00:33]}  b4 {[%clk 0:00:07]} 62. Kd3 {[%clk 0:00:33]}  Ka3 {[%clk 0:00:07]} 63. Nc2+ {[%clk 0:00:31]}  Kb3 {[%clk 0:00:06]} 64. Nce3 {[%clk 0:00:30]}  Ka2 {[%clk 0:00:06]} 65. Nc4 {[%clk 0:00:29]}  Kb1 {[%clk 0:00:04]} 66. Ndb2 {[%clk 0:00:21]}  b3 {[%clk 0:00:05]} 67. Kc3 {[%clk 0:00:20]}  Kc1 {[%clk 0:00:04]} 68. Kd4 {[%clk 0:00:18]}  Kc2 {[%clk 0:00:04]} 69. Ke5 {[%clk 0:00:18]}  Kc3 {[%clk 0:00:04]} 70. Ke4 {[%clk 0:00:17]}  Kc2 {[%clk 0:00:05]} 71. Kd4 {[%clk 0:00:16]}  Kc1 {[%clk 0:00:05]} 72. Kc3 {[%clk 0:00:15]}  Kb1 {[%clk 0:00:05]} 73. Ne3 {[%clk 0:00:14]}  Kc1 {[%clk 0:00:06]} 74. Nec4 {[%clk 0:00:12]}  Kb1 {[%clk 0:00:06]} 75. Nb6 {[%clk 0:00:10]}  Kc1 {[%clk 0:00:06]} 76. Nd3+ {[%clk 0:00:09]}  Kb1 {[%clk 0:00:06]} 77. Nc4 {[%clk 0:00:08]}  Ka2 {[%clk 0:00:07]} 78. Ncb2 {[%clk 0:00:06]}  Ka3 {[%clk 0:00:07]} 79. Nc4+ {[%clk 0:00:05]}  Ka2 {[%clk 0:00:07]} 80. Nb4+ {[%clk 0:00:05]}  Kb1 {[%clk 0:00:07]} 81. Nd2+ {[%clk 0:00:05]}  Kc1 {[%clk 0:00:07]} 82. Nd3+ {[%clk 0:00:06]}  Kd1 {[%clk 0:00:07]} 83. Ne4 {[%clk 0:00:05]}  Ke2 {[%clk 0:00:06]} 84. Nb2 {[%clk 0:00:04]}  Ke3 {[%clk 0:00:07]} 85. Nd2 {[%clk 0:00:05]}  Ke2 {[%clk 0:00:07]} 86. Ndc4 {[%clk 0:00:05]}  Kf3 {[%clk 0:00:07]} 87. Kd4 {[%clk 0:00:06]}  Kf4 {[%clk 0:00:08]} 88. Nd6 {[%clk 0:00:06]}  Kf3 {[%clk 0:00:08]} 89. Ne4 {[%clk 0:00:06]}  Ke2 {[%clk 0:00:08]} 90. Nc3+ {[%clk 0:00:05]}  Kd2 {[%clk 0:00:08]} 91. Nc4+ {[%clk 0:00:05]}  Kc2 {[%clk 0:00:08]} 92. Na4 {[%clk 0:00:05]}  Kd1 {[%clk 0:00:08]} 93. Ncb2+ {[%clk 0:00:05]}  Kc2 {[%clk 0:00:09]} 94. Ke3 {[%clk 0:00:06]}  Kc1 {[%clk 0:00:08]} 95. Ke2 {[%clk 0:00:06]}  Kc2 {[%clk 0:00:09]} 96. Ke3 {[%clk 0:00:04]}  Kb1 {[%clk 0:00:08]} 97. Kd2 {[%clk 0:00:03]}  Ka2 {[%clk 0:00:09]} 98. Kc3 {[%clk 0:00:03]}  Ka3 {[%clk 0:00:09]} 99. Nc5 {[%clk 0:00:02]}  Ka2 {[%clk 0:00:10]} 100. Nbd3 {[%clk 0:00:02]}  Kb1 {[%clk 0:00:10]} 101. Na4 {[%clk 0:00:01]}  Ka1 {[%clk 0:00:10]} 102. Nac5 {[%clk 0:00:01]}  Ka2 {[%clk 0:00:10]} 0-1


[Site "https://www.chess.com"]

[Event "Titled Tuesday Blitz November 01 Late 2022"]
[White "Postny, Evgeny"]
[Black "Predke, Alexandr"]
[WhiteFideId "2804344"]
[BlackFideId "24107581"]
[WhiteElo "2473"]
[BlackElo "2614"]
[Result "1/2-1/2"]
[Round "10"]
[TimeControl "180+1"]
[Date "2022.11.01"]
[WhiteClock "0:00:31"]
[BlackClock "0:00:09"]

1. Nf3 {[%clk 0:02:56]}  c5 {[%clk 0:02:57]} 2. c4 {[%clk 0:02:56]}  Nc6 {[%clk 0:02:54]} 3. g3 {[%clk 0:02:56]}  g6 {[%clk 0:02:51]} 4. Bg2 {[%clk 0:02:56]}  Bg7 {[%clk 0:02:51]} 5. O-O {[%clk 0:02:57]}  e5 {[%clk 0:02:48]} 6. Nc3 {[%clk 0:02:56]}  Nge7 {[%clk 0:02:48]} 7. Ne1 {[%clk 0:02:55]}  O-O {[%clk 0:02:47]} 8. Nc2 {[%clk 0:02:55]}  f5 {[%clk 0:02:44]} 9. d3 {[%clk 0:02:55]}  f4 {[%clk 0:02:42]} 10. Rb1 {[%clk 0:02:51]}  a5 {[%clk 0:02:42]} 11. Nd5 {[%clk 0:02:44]}  Nxd5 {[%clk 0:02:36]} 12. cxd5 {[%clk 0:02:38]}  Nb4 {[%clk 0:02:32]} 13. a3 {[%clk 0:02:33]}  Nxc2 {[%clk 0:02:31]} 14. Qxc2 {[%clk 0:02:34]}  d6 {[%clk 0:02:32]} 15. b4 {[%clk 0:02:34]}  axb4 {[%clk 0:02:26]} 16. axb4 {[%clk 0:02:34]}  b6 {[%clk 0:02:26]} 17. bxc5 {[%clk 0:02:17]}  bxc5 {[%clk 0:02:27]} 18. Bd2 {[%clk 0:02:16]}  Bg4 {[%clk 0:02:23]} 19. Bc3 {[%clk 0:02:14]}  f3 {[%clk 0:02:06]} 20. exf3 {[%clk 0:02:13]}  Bxf3 {[%clk 0:02:06]} 21. Rb7 {[%clk 0:02:00]}  Qf6 {[%clk 0:01:53]} 22. Bxf3 {[%clk 0:01:33]}  Qxf3 {[%clk 0:01:54]} 23. Qb3 {[%clk 0:01:33]}  Bh6 {[%clk 0:01:38]} 24. Qc4 {[%clk 0:01:08]}  Be3 {[%clk 0:01:20]} 25. Rb2 {[%clk 0:00:58]}  Ra1 {[%clk 0:01:15]} 26. Rxa1 {[%clk 0:00:53]}  Bxf2+ {[%clk 0:01:13]} 27. Rxf2 {[%clk 0:00:53]}  Qxf2+ {[%clk 0:01:09]} 28. Kh1 {[%clk 0:00:54]}  Qe2 {[%clk 0:00:33]} 29. Kg1 {[%clk 0:00:30]}  Qe3+ {[%clk 0:00:19]} 30. Kh1 {[%clk 0:00:30]}  Qf3+ {[%clk 0:00:13]} 31. Kg1 {[%clk 0:00:30]}  Qf2+ {[%clk 0:00:12]} 32. Kh1 {[%clk 0:00:30]}  Qf3+ {[%clk 0:00:12]} 33. Kg1 {[%clk 0:00:30]}  Qe3+ {[%clk 0:00:10]} 34. Kh1 {[%clk 0:00:31]}  Qf3+ {[%clk 0:00:09]} 1/2-1/2


[Site "https://www.chess.com"]